Cogmind - Beta 10.2 @@@ ROGUE MODE // 2021.10.10 @ 04:48:21 Player: youngster Result: Destroyed by S-43 Plague with Heavy Machine Gun Performance ------------- Evolutions (7) 3500 Regions Visited (22) 4400 Robots Destroyed (83) 415 Value Destroyed (2283) 2283 Prototype IDs (61) 1220 Alien Tech Used (1) 200 Bonus (4346) 4346 TOTAL SCORE: 16364 Bonus ------- High Alert Combat Kills 155 Follower Combat Kills 4424 Network Hubs Disabled 200 Met Data Miner 300 Met Imprinter 300 Was Imprinted 300 Built Enhanced Grunts 300 Met R17 at Cetus 500 Friendly Fire -2133 Cogmind --------- Core Integrity 0/1300 Matter 233/300 Energy 13/100 System Corruption 6% Temperature Cool (0) Movement Core (300) Ox5 Location -3/Armory Parts ------- > --- POWER (2) -------- (None) > --- PROPULSION (5) --- Advanced Medium Treads Impulse Thruster Array > --- UTILITY (13) ----- Advanced Signal Interpreter Makeshift Terrain Scan Processor Makeshift Terrain Scan Processor Advanced Terrain Scan Processor Energy Mantle Improved Hacking Suite System Shield System Shield > --- WEAPON (2) ------- (None) > --- INVENTORY (4) ---- Improved Hacking Suite Gamma Bomb Array Gamma Bomb Array Field Lobotomy Kit Peak State ------------ > --- POWER ------------ Light Angular Momentum Engine Micro Fission Core > --- PROPULSION ------- VTOL Module Impulse Thruster Array Impulse Thruster Array > --- UTILITY ---------- Large Storage Unit Experimental Sensor Array Advanced Signal Interpreter Experimental Terrain Scanner Makeshift Terrain Scan Processor Makeshift Terrain Scan Processor Advanced Terrain Scan Processor Advanced Melee Analysis Suite Improved Hacking Suite Advanced Hacking Suite Advanced System Shield Hacking Drone Bay > --- WEAPON ----------- Mini Smartbomb Launcher CR-A16's Pointy Stick > --- INVENTORY -------- Impulse Thruster Array Impulse Thruster Array Advanced Weapon Cycler Improved Hacking Suite Micro-nuke Launcher Field Lobotomy Kit [Rating: 121] Favorites ----------- Power Light Nuclear Core Engine Ion Engine Power Core Light Nuclear Core Reactor Light Antimatter Reactor Propulsion VTOL Module Treads Light Treads Leg Carbon-fiber Leg Flight Unit VTOL Module Utility Makeshift Terrain Scan Processor Device Experimental Sensor Array Storage Large Storage Unit Processor Makeshift Terrain Scan Processor Hackware Makeshift Hacking Suite Protection Improved Utility Shielding Weapon Assault Rifle Energy Gun Medium Laser Ballistic Gun Assault Rifle Ballistic Cannon Flak Cannon Launcher Heavy Rocket Launcher Special Weapon Field Lobotomy Kit Slashing Weapon Chainsword Piercing Weapon CR-A16's Pointy Stick Special Melee Weapon Datajack Build | -11 -10 -10 -10 -9 -8 -7 -7 -7 -7 -6 -6 -6 -6 -5 -5 -4 -4 -4 -4 -4 -3 -3 ------- Run | Scr Mat Min Exi Min Mat Fac Low Low Dat Pro Fac Low Zio Pro Fac Fac Ext Cet Arc Hub Res Arm Slots Evolved 14 | . . . . . 4 2 . . . . 2 . . . 2 2 . . . . 2 . Power 1 | . . . . . . 1 . . . . . . . . . . . . . . . . Propulsion 3 | . . . . . 2 . . . . . . . . . 1 . . . . . . . Utility 10 | . . . . . 2 1 . . . . 2 . . . 1 2 . . . . 2 . Weapon . | . . . . . . . . . . . . . . . . . . . . . . . Parts Attached 207 | 7 12 2 2 . 19 16 9 8 1 14 23 6 4 5 19 6 8 . . 20 22 4 Power 25 | 1 3 . . . 2 2 . 1 . 1 5 . . 1 1 2 1 . . . 5 . Engine 12 | 1 3 . . . 2 . . . . . 3 . . 1 . . . . . . 2 . Core 10 | . . . . . . 2 . 1 . 1 2 . . . 1 1 . . . . 2 . Reactor 3 | . . . . . . . . . . . . . . . . 1 1 . . . 1 . Propulsion 55 | 2 4 1 . . 7 4 1 2 . 3 5 2 . 1 10 1 . . . 3 8 1 Treads 17 | 2 4 1 . . 7 . . . . . . 1 . 1 . . . . . . 1 . Leg 5 | . . . . . . . . 2 . 1 1 . . . . . . . . 1 . . Wheel . | . . . . . . . . . . . . . . . . . . . . . . . Hover . | . . . . . . . . . . . . . . . . . . . . . . . Flight 33 | . . . . . . 4 1 . . 2 4 1 . . 10 1 . . . 2 7 1 Utility 69 | 2 2 . . . 4 5 5 1 . 6 6 3 4 1 4 2 3 . . 13 5 3 Device 39 | . . . . . 3 2 3 . . 3 3 1 4 1 2 . 2 . . 9 5 1 Storage 8 | 2 2 . . . . 1 1 . . . 1 . . . 1 . . . . . . . Processor 8 | . . . . . 1 2 1 1 . . . 1 . . . 1 1 . . . . . Hackware 7 | . . . . . . . . . . . 1 . . . . 1 . . . 3 . 2 Protection 7 | . . . . . . . . . . 3 1 1 . . 1 . . . . 1 . . Artifact . | . . . . . . . . . . . . . . . . . . . . . . . Weapon 58 | 2 3 1 2 . 6 5 3 4 1 4 7 1 . 2 4 1 4 . . 4 4 . Energy Gun 3 | 1 1 . . . . . . . . . . . . . . . . . . 1 . . Energy Cannon . | . . . . . . . . . . . . . . . . . . . . . . . Ballistic Gun 9 | 1 2 1 1 . . . . 2 . 2 . . . . . . . . . . . . Ballistic Cannon 4 | . . . . . 4 . . . . . . . . . . . . . . . . . Launcher 17 | . . . . . 2 . . 1 . 2 2 1 . 1 2 . 1 . . 3 2 . Special Weapon 5 | . . . . . . . 2 1 . . 1 . . . . . 1 . . . . . Impact Weapon . | . . . . . . . . . . . . . . . . . . . . . . . Slashing Weapon 13 | . . . . . . 5 1 . 1 . . . . 1 1 1 2 . . . 1 . Piercing Weapon 6 | . . . . . . . . . . . 4 . . . 1 . . . . . 1 . Special Melee Weapon 1 | . . . 1 . . . . . . . . . . . . . . . . . . . Unidentified Prototypes 12 | . . . . . 2 . 1 . . 1 . . 2 . 2 . . . . 3 . 1 Parts Lost 45 | . . 1 . . . . 2 1 . 4 4 1 . 3 . . . . . 3 26 . Power 10 | . . . . . . . . . . 1 2 . . 1 . . . . . . 6 . Propulsion 21 | . . . . . . . 2 1 . 2 2 1 . 1 . . . . . 2 10 . Utility 10 | . . . . . . . . . . 1 . . . . . . . . . 1 8 . Weapon 4 | . . 1 . . . . . . . . . . . 1 . . . . . . 2 . Highest Loss Streak 10 | . . 1 . . . . 2 1 . 4 2 1 . 3 . . . . . 1 10 . Average Slot Usage (%) 92 | . 99 100 100 100 98 85 79 85 92 90 96 80 86 85 86 92 95 95 95 93 70 32 Engine 5 | . 14 14 14 14 9 . . . . . 8 . . . . . . . . . 1 . Core 5 | . . . . . . 14 14 14 14 10 1 12 12 10 10 10 5 5 5 5 2 . Treads 10 | . 28 28 28 28 35 1 . . . . . 3 . . . . . . . . . 4 Leg 3 | . . . . . . . . 6 14 13 12 . . . . . . . . . . . Flight 12 | . . . . . . 28 24 17 13 9 10 20 25 23 23 24 25 25 25 23 11 3 Device 8 | . . . . . 8 15 12 14 14 7 5 5 11 13 15 15 15 15 15 12 8 . Storage 12 | . 28 28 28 28 18 7 6 7 7 7 6 6 6 4 4 5 5 5 5 5 3 . Processor 15 | . . . . . 8 14 19 21 21 21 18 24 25 25 22 23 25 25 25 25 21 18 Hackware 3 | . . . . . . . . . . . 6 6 6 6 5 10 10 10 10 12 11 6 Energy Gun 1 | . 10 8 . . . . . . . . . . . . . . . . . . . . Ballistic Gun 6 | . 17 19 18 28 3 . . 3 7 1 . . . . . . . . . . . . Ballistic Cannon 1 | . . . . . 14 . . . . . . . . . . . . . . . . . Slashing Weapon 1 | . . . . . . . . . . 7 5 . . 1 1 4 4 5 5 5 2 . Naked Turns . | . . . . . . . . . . . . . . . . . . . . . . . Heaviest Build 69 | 15 57 57 56 56 69 59 27 27 23 36 48 20 20 27 35 32 46 46 46 46 39 18 Greatest Support 84 | 40 40 40 40 40 84 84 22 30 30 43 63 23 20 20 34 34 46 46 46 46 59 27 Greatest Overweight (x) 15 | 1 1 1 1 1 . 1 1 1 . 1 1 1 . 1 3 . 15 15 3 15 1 . Average Overweight (x) . | . . 1 1 1 . . . . . . . . . . . . 1 . . . . . Largest Inventory Capacity 18 | 8 18 18 18 18 18 18 8 6 6 6 10 8 8 8 10 10 10 10 10 10 10 4 Average Capacity 10 | 7 13 18 18 18 18 8 7 6 6 6 6 8 8 7 9 10 10 10 10 10 9 4 Most Carried 18 | 8 18 18 18 18 18 17 8 6 6 6 8 8 8 8 10 10 10 10 10 10 10 4 Average Carried 10 | 4 11 17 17 18 17 8 7 5 5 5 5 7 7 7 8 9 9 10 10 9 8 3 Final Capacity 18 | 8 18 18 18 18 18 8 6 6 6 6 8 8 8 4 10 10 10 10 10 10 4 4 Final Carried 18 | 8 18 18 18 18 18 8 6 6 6 6 8 8 8 4 10 10 10 10 10 10 2 4 Class Distribution -------------------- 31% | Scavenger-Mutant 26% | Mutant 8% | Scavenger-Sprinter 6% | Hacker-Sprinter 5% | Hacker-Mutant 5% | Commander-Mutant 5% | Scout 3% | Hacker-Scout Dominant Class ---------------- Mutant | -10/Materials Mutant | -10/Mines Scavenger-Mutant | -10/Exiles Scavenger-Mutant | -9/Mines Mutant | -8/Materials Scout | -7/Factory Scout | -7/Lower Caves Scavenger-Mutant | -7/Lower Caves Scavenger-Mutant | -7/Data Miner Scavenger-Mutant | -6/Proximity Caves Scavenger-Mutant | -6/Factory Scavenger-Mutant | -6/Lower Caves Scavenger-Sprinter | -6/Zion Scavenger-Sprinter | -5/Proximity Caves Derelict-Sprinter | -5/Factory Hacker-Scout | -4/Factory Hacker-Mutant | -4/Extension Commander-Mutant | -4/Cetus Commander-Mutant | -4/Archives Hacker-Sprinter | -4/Hub_04(d) Hacker-Scout | -3/Research Mutant | -3/Armory Resources | -11 -10 -10 -10 -9 -8 -7 -7 -7 -7 -6 -6 -6 -6 -5 -5 -4 -4 -4 -4 -4 -3 -3 ----------- Run | Scr Mat Min Exi Min Mat Fac Low Low Dat Pro Fac Low Zio Pro Fac Fac Ext Cet Arc Hub Res Arm Matter Collected 3113 | 291 260 34 . . 578 198 73 198 . 226 266 101 50 44 . . 369 . . 262 163 . Remotely . | . . . . . . . . . . . . . . . . . . . . . . . Salvage Created 2205 | 94 557 76 . . 560 . . 38 . 153 337 44 . . . . 18 56 . 129 143 . Parts 158 | 9 47 6 . . 40 . . 1 . 15 18 4 . . . . 2 . . 7 9 . Haulers Intercepted 5 | . 2 . . . 3 . . . . . . . . . . . . . . . . . Recyclers Shooed 4 | . . . . . 3 . . . . . . . . . . . 1 . . . . . Parts Field Recycled . | . . . . . . . . . . . . . . . . . . . . . . . Retrieved Matter . | . . . . . . . . . . . . . . . . . . . . . . . Parts Self-Destructed 16 | . . . . . . . . 1 . 11 . 1 . 3 . . . . . . . . Prevented 1 | . . . . . . . . . . . . . . 1 . . . . . . . . Kills | -11 -10 -10 -10 -9 -8 -7 -7 -7 -7 -6 -6 -6 -6 -5 -5 -4 -4 -4 -4 -4 -3 -3 ------- Run | Scr Mat Min Exi Min Mat Fac Low Low Dat Pro Fac Low Zio Pro Fac Fac Ext Cet Arc Hub Res Arm Combat Hostiles Destroyed 53 | . 12 2 . . 14 . . 1 . 7 8 4 . . . . . . . 1 4 . Melee 6 | . . . . . . . . . . . 5 . . . . . . . . . 1 . Guns 15 | . 12 2 . . 1 . . . . . . . . . . . . . . . . . Cannons 10 | . . . . . 10 . . . . . . . . . . . . . . . . . AOE 22 | . . . . . 3 . . 1 . 7 3 4 . . . . . . . 1 3 . Classes Destroyed 12 | 2 5 . . . 3 . . . . . 1 . . . . . . . . 1 . . Worker 7 | . 4 . . . 1 . . . . . 1 . . . . . . . . 1 . . Builder 1 | . . . . . 1 . . . . . . . . . . . . . . . . . Tunneler 2 | 2 . . . . . . . . . . . . . . . . . . . . . . Hauler 5 | . 2 . . . 3 . . . . . . . . . . . . . . . . . Recycler 4 | 1 . . . . 2 . . . . . 1 . . . . . . . . . . . Operator 4 | . . . . . 2 . . . . . . . . . . . 1 . . . 1 . Watcher 4 | . 2 . . . 1 . . . . . . . . . . . . . . 1 . . Swarmer 30 | . 6 . . . 4 . . . . 7 6 4 . . . . . . . . 3 . Grunt 14 | . 6 2 . . 5 . . 1 . . . . . . . . . . . . . . Sentry 5 | . . . . . 5 . . . . . . . . . . . . . . . . . Programmer 4 | . . . . . . . . . . . 2 . . . . . . . . 1 1 . Enhanced Grunt 1 | . . . . . . . . . . 1 . . . . . . . . . . . . Z-Heavy 1 | . . . . . . . . . . . . . . . . . . . . 1 . . Best Kill Streak 6 | 3 3 2 . . 6 . . 1 . 4 3 4 . . . . 1 . . 1 3 . Combat Bots Only 6 | . 3 2 . . 6 . . 1 . 4 3 4 . . . . . . . 1 3 . Max Kills in Single Turn 3 | 1 2 1 . . 3 . . 1 . 3 2 2 . . . . 1 1 . 1 2 . Gunslinging . | . . . . . . . . . . . . . . . . . . . . . . . Exploded 3 | . . . . . 3 . . 1 . 3 2 2 . . . . . . . 1 2 . Melee 1 | . . . . . . . . . . . 1 . . . . . . . . . 1 . Uniques/NPCs Destroyed 1 | . . . . . . . . . . . . . . . . . . 1 . . . . A7 (-4/Cetus) Combat | -11 -10 -10 -10 -9 -8 -7 -7 -7 -7 -6 -6 -6 -6 -5 -5 -4 -4 -4 -4 -4 -3 -3 -------- Run | Scr Mat Min Exi Min Mat Fac Low Low Dat Pro Fac Low Zio Pro Fac Fac Ext Cet Arc Hub Res Arm Damage Taken 6350 | . 403 101 . . 815 234 80 149 . 438 557 60 . 207 22 . 80 . . 199 2624 381 Core 1827 | . 80 22 . . 50 163 19 35 . 76 21 30 . 14 . . . . . 14 1032 271 Absorbed by Shields 86 | . . . . . . . . . . . . . . 15 . . 44 . . 27 . . Core Remaining (%) 85 | 100 . . . 59 90 . . . . 58 . . . 92 100 . . . . 98 . . Volleys Fired 129 | 7 38 6 . . 43 . 2 4 . 9 5 4 . 2 . . 2 . . 4 3 . Largest 2 | 2 2 2 . . 2 . 1 1 . 1 1 1 . 1 . . 1 . . 1 1 . Hottest 88 | 70 70 70 . . 88 . . 39 . 39 39 39 . 39 . . 80 . . 49 80 . Shots Fired 218 | 14 76 12 . . 81 . 2 4 . 9 5 4 . 2 . . 2 . . 4 3 . Gun 115 | 14 76 12 . . 10 . . . . 3 . . . . . . . . . . . . Cannon 68 | . . . . . 68 . . . . . . . . . . . . . . . . . Launcher 31 | . . . . . 3 . . 4 . 6 4 4 . 2 . . 1 . . 4 3 . Special 4 | . . . . . . . 2 . . . 1 . . . . . 1 . . . . . Kinetic 148 | 7 53 7 . . 78 . . . . 3 . . . . . . . . . . . . Thermal 35 | 7 23 5 . . . . . . . . . . . . . . . . . . . . Explosive 31 | . . . . . 3 . . 4 . 6 4 4 . 2 . . 1 . . 4 3 . Electromagnetic . | . . . . . . . . . . . . . . . . . . . . . . . Robot Hit Streak 13 | 5 13 3 . . 12 . 8 1 . 3 4 1 . 1 . . 2 . . . 3 . Robot Miss Streak 5 | 1 2 2 . . 5 . . 1 . . . 1 . 1 . . . . . . . . Penetration Max . | . . . . . . . . . . . . . . . . . . . . . . . Secondary Targets . | . . . . . . . . . . . . . . . . . . . . . . . Shots Hit Robots 185 | 9 46 6 5 . 68 2 2 1 . 5 18 1 . 1 . . 6 2 . 1 12 . Core Hits 168 | 4 28 5 . . 72 . . 3 . 16 10 5 . 2 . . 3 1 . 11 8 . Critical Hits 2 | . 1 . . . . 1 . . . . . . . . . . . . . . . . Critical Kills 1 | . 1 . . . . . . . . . . . . . . . . . . . . . Critical Parts Destroyed . | . . . . . . . . . . . . . . . . . . . . . . . Melee Attacks 102 | . . . 5 . . 10 1 . . 2 27 . . . . 6 8 6 1 8 28 . Impact . | . . . . . . . . . . . . . . . . . . . . . . . Slashing 68 | . . . . . . 10 1 . . 2 19 . . . . 6 8 6 1 8 7 . Piercing 29 | . . . . . . . . . . . 8 . . . . . . . . . 21 . Sneak Attacks 15 | . . . 4 . . 1 . . . 2 3 . . . . . 2 2 . . 1 . Combat Hostiles 4 | . . . 4 . . . . . . . . . . . . . . . . . . . Follow-up Attacks 7 | . . . . . . . . . . . 3 . . . . . . . . . 4 . Damage Inflicted 8073 | 124 785 84 . . 1742 152 . 246 . 978 1039 282 . 272 . . 406 220 . 880 863 . Guns 929 | 124 591 84 . . 69 . . . . 61 . . . . . . . . . . . . Cannons 1119 | . . . . . 1119 . . . . . . . . . . . . . . . . . Explosions 3578 | . 139 . . . 510 . . 246 . 699 272 282 . 272 . . 5 . . 821 332 . Melee 2348 | . . . . . . 152 . . . 218 767 . . . . . 401 220 . 59 531 . Ramming 99 | . 55 . . . 44 . . . . . . . . . . . . . . . . . Kinetic 1697 | 37 352 59 . . 1188 . . . . 61 . . . . . . . . . . . . Thermal 677 | 87 239 25 . . 326 . . . . . . . . . . . . . . . . . Explosive 2563 | . . . . . 184 . . 246 . 699 272 282 . 272 . . 5 . . 271 332 . Electromagnetic 689 | . 139 . . . . . . . . . . . . . . . . . . 550 . . Impact . | . . . . . . . . . . . . . . . . . . . . . . . Slashing 1796 | . . . . . . 152 . . . 218 602 . . . . . 401 220 . 59 144 . Piercing 552 | . . . . . . . . . . . 165 . . . . . . . . . 387 . Highest Corruption 6 | . . . . . . . . . . . 4 4 4 . . . . . . 2 6 6 Average Corruption 3 | . . . . . . . . . . . 1 4 4 . . . . . . 2 4 6 Corruption Purged . | . . . . . . . . . . . . . . . . . . . . . . . Effects 22 | . . . . . . . . . . . 2 3 2 . . . . . . 1 11 3 Message Errors 2 | . . . . . . . . . . . 1 . 1 . . . . . . . . . Matter Fused 4 | . . . . . . . . . . . . . . . . . . . . . 2 2 Heat Flow Errors 3 | . . . . . . . . . . . . 1 . . . . . . . . 2 . Energy Discharges 4 | . . . . . . . . . . . . . 1 . . . . . . . 2 1 Parts Rejected 1 | . . . . . . . . . . . . . . . . . . . . . 1 . Data Loss (minor) 6 | . . . . . . . . . . . 1 2 . . . . . . . 1 2 . Targeting Errors 2 | . . . . . . . . . . . . . . . . . . . . . 2 . Overload Shots . | . . . . . . . . . . . . . . . . . . . . . . . Overflow Damage 669 | . . . . . 107 . . . . 32 160 . . 30 . . 97 27 . 62 154 . Projectiles 3 | . . . . . 3 . . . . . . . . . . . . . . . . . Explosions 314 | . . . . . 104 . . . . 27 44 . . 30 . . . . . 62 47 . Melee 352 | . . . . . . . . . . 5 116 . . . . . 97 27 . . 107 . Knockbacks 25 | . . . . . 25 . . . . . . . . . . . . . . . . . Impact 1 | . . . . . 1 . . . . . . . . . . . . . . . . . Kinetic 19 | . . . . . 19 . . . . . . . . . . . . . . . . . Secondary 5 | . . . . . 5 . . . . . . . . . . . . . . . . . Self-Inflicted Damage 722 | . . . . . 226 . . 63 . 4 154 . . 49 . . . . . 96 130 . Shots 12 | . . . . . 3 . . 1 . 1 3 . . 1 . . . . . 1 2 . Rammed 14 | . 10 . . . 4 . . . . . . . . . . . . . . . . . Targets Rammed 16 | . 11 . . . 5 . . . . . . . . . . . . . . . . . Kicked . | . . . . . . . . . . . . . . . . . . . . . . . Crushed 2 | . 1 . . . 1 . . . . . . . . . . . . . . . . . Highest Temperature 188 | 45 90 81 . . 117 12 . 9 . . 11 168 . 1 21 . 44 4 4 30 188 . Average Temperature 20 | 18 25 39 . . 25 8 . 9 . . 8 80 . 1 6 . 4 2 2 3 65 . Received Heat Transfer 866 | . 150 57 . . 225 12 12 21 . 96 18 . . 63 . . 6 . . 9 197 . Siege Activations . | . . . . . . . . . . . . . . . . . . . . . . . Robots Corrupted 1 | . . . . . . . . . . . . . . . . . . . . 1 . . Combat Hostiles . | . . . . . . . . . . . . . . . . . . . . . . . Parts Fried 2 | . . . . . . . . . . . . . . . . . . . . 2 . . Impact Corruptions . | . . . . . . . . . . . . . . . . . . . . . . . Robots Melted . | . . . . . . . . . . . . . . . . . . . . . . . Combat Hostiles . | . . . . . . . . . . . . . . . . . . . . . . . Parts Melted 2 | 1 . . . . 1 . . . . . . . . . . . . . . . . . Heat Transferred 1286 | 259 703 74 . . 250 . . . . . . . . . . . . . . . . . Parts Sabotaged . | . . . . . . . . . . . . . . . . . . . . . . . Parts Stolen . | . . . . . . . . . . . . . . . . . . . . . . . Parts Stripped . | . . . . . . . . . . . . . . . . . . . . . . . Power Chain Reactions . | . . . . . . . . . . . . . . . . . . . . . . . Missiles Intercepted . | . . . . . . . . . . . . . . . . . . . . . . . Alert | -11 -10 -10 -10 -9 -8 -7 -7 -7 -7 -6 -6 -6 -6 -5 -5 -4 -4 -4 -4 -4 -3 -3 ------- Run | Scr Mat Min Exi Min Mat Fac Low Low Dat Pro Fac Low Zio Pro Fac Fac Ext Cet Arc Hub Res Arm Peak Influence 1589 | 15 199 70 . . 351 100 . . . . 266 . . . 76 50 1146 929 523 1589 1086 597 Initial 834 | . 9 15 . . . 100 . . . . 15 . . . 46 32 24 641 371 182 834 488 Average 299 | 7 74 37 . . 166 39 . . . . 157 . . . 58 43 379 815 493 748 906 537 Maximum Alert Level 4 | . . . . . 1 . . . . . 1 . . . . . 4 3 2 4 3 2 Low Security (%) 57 | 100 100 100 . 100 56 100 . . . . 48 . . . 100 100 39 . . 7 . . Level 1 16 | . . . . . 43 . . . . . 51 . . . . . 36 . 3 7 . . Level 2 7 | . . . . . . . . . . . . . . . . . 2 16 96 29 . 100 Level 3 16 | . . . . . . . . . . . . . . . . . 10 83 . 49 100 . Level 4 2 | . . . . . . . . . . . . . . . . . 11 . . 6 . . Level 5 . | . . . . . . . . . . . . . . . . . . . . . . . High Security . | . . . . . . . . . . . . . . . . . . . . . . . Max Security . | . . . . . . . . . . . . . . . . . . . . . . . Squads Dispatched 21 | . 3 . . . 1 . . . . . 5 . . . 1 . 4 . . 4 2 1 Investigation 6 | . 3 . . . . . . . . . 2 . . . . . . . . . . 1 Extermination 6 | . . . . . . . . . . . 2 . . . 1 . . . . 2 1 . Reinforcement 8 | . . . . . 1 . . . . . 1 . . . . . 4 . . 2 . . Assault 1 | . . . . . . . . . . . . . . . . . . . . . 1 . Garrison . | . . . . . . . . . . . . . . . . . . . . . . . Intercept . | . . . . . . . . . . . . . . . . . . . . . . . Construction Impeded 1 | . . . . . . . . . . . . . . . . . . . . 1 . . Haulers Reinforced 1 | . . . . . . . . . . . . . . . . . . . . 1 . . Stealth | -11 -10 -10 -10 -9 -8 -7 -7 -7 -7 -6 -6 -6 -6 -5 -5 -4 -4 -4 -4 -4 -3 -3 --------- Run | Scr Mat Min Exi Min Mat Fac Low Low Dat Pro Fac Low Zio Pro Fac Fac Ext Cet Arc Hub Res Arm Distress Signals 19 | . 1 . . . 2 . . . . . . . . . . . 5 2 . 5 4 . Communications Jammed . | . . . . . . . . . . . . . . . . . . . . . . . Distress Signals . | . . . . . . . . . . . . . . . . . . . . . . . Times Spotted 222 | . 27 4 . . 23 1 2 4 . 8 13 1 . 6 2 . 36 9 . 26 44 16 Peak Tracking Total 19 | . 6 2 . . 5 1 1 2 . 4 4 2 . 5 1 . 14 5 . 6 19 9 Tactical Retreats 18 | . . . . . 1 . . . . . 1 . . 2 1 . 1 . . 4 5 3 Traps | -11 -10 -10 -10 -9 -8 -7 -7 -7 -7 -6 -6 -6 -6 -5 -5 -4 -4 -4 -4 -4 -3 -3 ------- Run | Scr Mat Min Exi Min Mat Fac Low Low Dat Pro Fac Low Zio Pro Fac Fac Ext Cet Arc Hub Res Arm Traps Triggered 13 | . 3 . . . . 3 . . . . 2 . . . . . 3 . . 1 1 . Indirectly 1 | . . . . . . . . . . . . . . . . . . . . 1 . . Trap Hack Attempts . | . . . . . . . . . . . . . . . . . . . . . . . Triggered . | . . . . . . . . . . . . . . . . . . . . . . . Disarmed . | . . . . . . . . . . . . . . . . . . . . . . . Reprogrammed . | . . . . . . . . . . . . . . . . . . . . . . . Reused . | . . . . . . . . . . . . . . . . . . . . . . . Traps Extracted . | . . . . . . . . . . . . . . . . . . . . . . . Installed . | . . . . . . . . . . . . . . . . . . . . . . . Triggered . | . . . . . . . . . . . . . . . . . . . . . . . Machines | -11 -10 -10 -10 -9 -8 -7 -7 -7 -7 -6 -6 -6 -6 -5 -5 -4 -4 -4 -4 -4 -3 -3 ---------- Run | Scr Mat Min Exi Min Mat Fac Low Low Dat Pro Fac Low Zio Pro Fac Fac Ext Cet Arc Hub Res Arm Machines Disabled 28 | . 1 . . . 3 . . . . . 6 . . . . . 1 . 2 14 1 . Max in Single Turn 5 | . 1 . . . 3 . . . . . 4 . . . . . . . . 5 . . Garrison Access 4 | . . . . . . 1 . . . . . . . . . 1 . . . 1 1 . Network Hub 1 | . . . . . . . . . . . . . . . . . . . . 1 . . Machines Sabotaged . | . . . . . . . . . . . . . . . . . . . . . . . Garrisons Compromised . | . . . . . . . . . . . . . . . . . . . . . . . Overloaded Fab Kills . | . . . . . . . . . . . . . . . . . . . . . . . Fab Network Shutdowns . | . . . . . . . . . . . . . . . . . . . . . . . Hacking | -11 -10 -10 -10 -9 -8 -7 -7 -7 -7 -6 -6 -6 -6 -5 -5 -4 -4 -4 -4 -4 -3 -3 --------- Run | Scr Mat Min Exi Min Mat Fac Low Low Dat Pro Fac Low Zio Pro Fac Fac Ext Cet Arc Hub Res Arm Machines Accessed 41 | . 11 . 2 . 3 6 . . 4 . 6 . 1 . 1 3 1 . . 1 1 1 Terminals 19 | . 8 . . . 3 4 . . . . 4 . . . . . . . . . . . Fabricators 4 | . . . . . . 1 . . . . 1 . . . 1 . . . . . . 1 Repair Stations 4 | . 1 . . . . . . . . . . . . . . 2 1 . . . . . Recycling Units 3 | . 2 . . . . . . . . . 1 . . . . . . . . . . . Scanalyzers . | . . . . . . . . . . . . . . . . . . . . . . . Garrison Access 4 | . . . . . . 1 . . . . . . . . . 1 . . . 1 1 . Total Hacks 113 | . 32 . 2 . 7 10 . . 29 . 11 . 5 . 4 4 3 . . 1 1 4 Successful 83 | . 24 . 2 . 3 5 . . 29 . 2 . 5 . 4 3 2 . . 1 1 2 Failed 30 | . 8 . . . 4 5 . . . . 9 . . . . 1 1 . . . . 2 Catastrophic 7 | . . . . . 1 1 . . . . 4 . . . . . . . . . . 1 Database Lockouts . | . . . . . . . . . . . . . . . . . . . . . . . Manual 142 | . 20 . 2 . 6 6 . . . . 9 . 1 . 10 3 22 6 . 35 12 10 Terminals 51 | . 28 . . . 7 7 . . . . 9 . . . . . . . . . . . Fabricators 10 | . . . . . . 1 . . . . 1 . . . 4 . . . . . . 4 Repair Stations 8 | . 2 . . . . . . . . . . . . . . 3 3 . . . . . Recycling Units 3 | . 2 . . . . . . . . . 1 . . . . . . . . . . . Scanalyzers . | . . . . . . . . . . . . . . . . . . . . . . . Garrison Access 5 | . . . . . . 2 . . . . . . . . . 1 . . . 1 1 . Terminal Hacks 47 | . 7 . 2 . 1 2 . . 29 . 1 . 5 . . . . . . . . . Record 12 | . . . 1 . . . . . 11 . . . . . . . . . . . . . Part Schematic 16 | . . . . . 1 . . . 10 . . . 5 . . . . . . . . . Robot Schematic 5 | . . . . . . . . . 5 . . . . . . . . . . . . . Prototype ID Bank 5 | . 2 . . . . . . . 3 . . . . . . . . . . . . . Level Access Points 1 | . 1 . . . . . . . . . . . . . . . . . . . . . Branch Access Points 2 | . . . . . . 1 . . . . 1 . . . . . . . . . . . Terminal Index 1 | . 1 . . . . . . . . . . . . . . . . . . . . . Alert Level 1 | . 1 . . . . . . . . . . . . . . . . . . . . . Unreport Threat 1 | . . . . . . 1 . . . . . . . . . . . . . . . . Hauler Manifests 1 | . 1 . . . . . . . . . . . . . . . . . . . . . Zone Layout 1 | . 1 . . . . . . . . . . . . . . . . . . . . . EX-Prototype ID Bank 1 | . . . 1 . . . . . . . . . . . . . . . . . . . Fabricator Hacks 7 | . . . . . . 1 . . . . . . . . 4 . . . . . . 2 Load Schematic 3 | . . . . . . . . . . . . . . . 2 . . . . . . 1 Build 4 | . . . . . . 1 . . . . . . . . 2 . . . . . . 1 Repair Station Hacks 6 | . 2 . . . . . . . . . . . . . . 2 2 . . . . . Scan Component 3 | . 1 . . . . . . . . . . . . . . 1 1 . . . . . Repair 3 | . 1 . . . . . . . . . . . . . . 1 1 . . . . . Recycling Unit Hacks . | . . . . . . . . . . . . . . . . . . . . . . . Scanalyzer . | . . . . . . . . . . . . . . . . . . . . . . . Garrison Access Hacks 4 | . . . . . . 1 . . . . . . . . . 1 . . . 1 1 . Seal Access 4 | . . . . . . 1 . . . . . . . . . 1 . . . 1 1 . Unauthorized Hacks 19 | . 15 . . . 2 1 . . . . 1 . . . . . . . . . . . Terminals 16 | . 13 . . . 2 1 . . . . . . . . . . . . . . . . Track 4 | . 4 . . . . . . . . . . . . . . . . . . . . . Assimilate 2 | . 1 . . . 1 . . . . . . . . . . . . . . . . . Botnet 7 | . 6 . . . . 1 . . . . . . . . . . . . . . . . Detonate 1 | . 1 . . . . . . . . . . . . . . . . . . . . . Operators 2 | . 1 . . . 1 . . . . . . . . . . . . . . . . . Fabricators . | . . . . . . . . . . . . . . . . . . . . . . . Repair Stations . | . . . . . . . . . . . . . . . . . . . . . . . Recycling Units 3 | . 2 . . . . . . . . . 1 . . . . . . . . . . . Tunnel 3 | . 2 . . . . . . . . . 1 . . . . . . . . . . . Scanalyzers . | . . . . . . . . . . . . . . . . . . . . . . . Garrison Access . | . . . . . . . . . . . . . . . . . . . . . . . Data Cores Recovered . | . . . . . . . . . . . . . . . . . . . . . . . Used . | . . . . . . . . . . . . . . . . . . . . . . . Hacking Detections 23 | . 7 . . . 3 4 . . . . 5 . . . . 2 1 . . . . 1 Full Trace Events 1 | . . . . . . . . . . . 1 . . . . . . . . . . . Feedback Events 1 | . . . . . . . . . . . 1 . . . . . . . . . . . Corruption 1 | . . . . . . . . . . . 1 . . . . . . . . . . . Feedback Blocked . | . . . . . . . . . . . . . . . . . . . . . . . Robot Schematics Acquired 5 | . . . . . . . . . 5 . . . . . . . . . . . . . Robots Built . | . . . . . . . . . . . . . . . . . . . . . . . Matter . | . . . . . . . . . . . . . . . . . . . . . . . Time . | . . . . . . . . . . . . . . . . . . . . . . . Total Robot Build Rating . | . . . . . . . . . . . . . . . . . . . . . . . Part Schematics Acquired 43 | . . . . . 1 . . . 10 . . . 5 . 15 . 12 . . . . . Parts Built 3 | . . . . . . 2 . . . . . . . . 1 . . . . . . . Matter 1100 | . . . . . . 212 . . . . . . . . 570 . . . . . . 318 Time 494 | . . . . . . 106 . . . . . . . . 304 . . . . . . 84 Total Part Build Rating 17 | . . . . . . 12 . . . . . . . . 5 . . . . . . . Parts Repaired 3 | . 1 . . . . . . . . . . . . . . 1 1 . . . . . Time 58 | . 26 . . . . . . . . . . . . . . 16 16 . . . . . Parts Recycled . | . . . . . . . . . . . . . . . . . . . . . . . Recycled Matter . | . . . . . . . . . . . . . . . . . . . . . . . Retrieved Matter . | . . . . . . . . . . . . . . . . . . . . . . . Retrieved Components . | . . . . . . . . . . . . . . . . . . . . . . . Parts Scanalyzed . | . . . . . . . . . . . . . . . . . . . . . . . Part Schematics Acquired . | . . . . . . . . . . . . . . . . . . . . . . . Parts Damaged . | . . . . . . . . . . . . . . . . . . . . . . . Bothacking | -11 -10 -10 -10 -9 -8 -7 -7 -7 -7 -6 -6 -6 -6 -5 -5 -4 -4 -4 -4 -4 -3 -3 ------------ Run | Scr Mat Min Exi Min Mat Fac Low Low Dat Pro Fac Low Zio Pro Fac Fac Ext Cet Arc Hub Res Arm Used RIF Installer . | . . . . . . . . . . . . . . . . . . . . . . . Robots Hacked . | . . . . . . . . . . . . . . . . . . . . . . . Non-combat . | . . . . . . . . . . . . . . . . . . . . . . . Combat . | . . . . . . . . . . . . . . . . . . . . . . . Robot Hacks Applied . | . . . . . . . . . . . . . . . . . . . . . . . Relay Couplers Released . | . . . . . . . . . . . . . . . . . . . . . . . Robots Rewired 13 | . . . 3 . . . . . . . . . . . . . 10 . . . . . Allies Hacked 3 | . . . . . . . . . . . . . . . . . . . . . 3 . Hacks Repelled . | . . . . . . . . . . . . . . . . . . . . . . . Allies | -11 -10 -10 -10 -9 -8 -7 -7 -7 -7 -6 -6 -6 -6 -5 -5 -4 -4 -4 -4 -4 -3 -3 -------- Run | Scr Mat Min Exi Min Mat Fac Low Low Dat Pro Fac Low Zio Pro Fac Fac Ext Cet Arc Hub Res Arm Total Allies 88 | . . . 3 . 1 . 2 . . 1 1 . 4 . 4 2 34 11 . 13 8 4 Largest Group 24 | . . . 3 3 3 . 2 1 1 2 1 . 4 4 3 5 24 23 20 18 4 3 Highest-Rated Group 1382 | . . . 37 37 37 . 70 38 35 129 32 . 157 157 84 290 1236 1382 1252 1175 206 288 Highest-Rated Ally 156 | . . . 21 21 21 . 38 38 35 94 32 . 40 40 28 103 156 141 103 103 103 96 Zionite Dispatches 23 | . . . . . . . . . . . . . . . 2 1 5 2 . 8 3 2 Heavy 5 | . . . . . . . . . . . . . . . . 1 1 1 . 1 1 . Light 1 | . . . . . . . . . . . . . . . . . . . . . . 1 Recon 1 | . . . . . . . . . . . . . . . . . 1 . . . . . Fire 6 | . . . . . . . . . . . . . . . 1 . 2 1 . 1 1 . Hacker 1 | . . . . . . . . . . . . . . . . . . . . . 1 . Demo 3 | . . . . . . . . . . . . . . . . . 1 . . 2 . . Thermal Resupply 1 | . . . . . . . . . . . . . . . . . . . . 1 . . Explosive Resupply 1 | . . . . . . . . . . . . . . . 1 . . . . . . . Hacking Resupply 4 | . . . . . . . . . . . . . . . . . . . . 3 . 1 Total Orders 18 | . . . . . . . . . . . . . . . 3 . . . . 13 1 1 FOLLOW 4 | . . . . . . . . . . . . . . . 1 . . . . 3 . . DROP 6 | . . . . . . . . . . . . . . . 1 . . . . 4 . 1 RETURN 8 | . . . . . . . . . . . . . . . 1 . . . . 6 1 . Ally Attacks 518 | . . . . . 10 . . 7 . 9 2 . . 14 . . 204 70 21 150 18 13 Total Damage 21044 | . . . . . 247 . . 305 . 246 33 . . 287 . . 8269 2673 761 6192 1497 534 Kills 113 | . . . . . 1 . . 3 . 3 1 . . 2 . . 43 12 5 36 5 2 Allies Corrupted 3 | . . . . . . . . . . . . . . . . . . . . 1 2 . Allies Melted . | . . . . . . . . . . . . . . . . . . . . . . . Field Lobotomies 4 | . . . . . . . 2 . . . 1 . . . . . 1 . . . . . Intel | -11 -10 -10 -10 -9 -8 -7 -7 -7 -7 -6 -6 -6 -6 -5 -5 -4 -4 -4 -4 -4 -3 -3 ------- Run | Scr Mat Min Exi Min Mat Fac Low Low Dat Pro Fac Low Zio Pro Fac Fac Ext Cet Arc Hub Res Arm Robot Analysis Total . | . . . . . . . . . . . . . . . . . . . . . . . Derelict Logs Recovered 7 | . . . . . . . 2 . . 1 . 1 2 1 . . . . . . . . Drone Launches 7 | . . . . . . . . . . . . . . . 1 . . . . 5 1 . Drone Recoveries 6 | . . . . . . . . . . . . . . . 1 . . . . 5 . . Zionite Intel Received 7 | . . . . . . . . . . . . . . . 1 . 1 . . 3 1 1 Branch Access 1 | . . . . . . . . . . . . . . . . . . . . . 1 . Prototype Stockpiles 1 | . . . . . . . . . . . . . . . . . . . . 1 . . Component Schematics 1 | . . . . . . . . . . . . . . . 1 . . . . . . . Prototype Schematics 1 | . . . . . . . . . . . . . . . . . 1 . . . . . Active Terminals 1 | . . . . . . . . . . . . . . . . . . . . . . 1 Active Garrisons 1 | . . . . . . . . . . . . . . . . . . . . 1 . . Depthwide Sectors/0 1 | . . . . . . . . . . . . . . . . . . . . 1 . . Exploration | -11 -10 -10 -10 -9 -8 -7 -7 -7 -7 -6 -6 -6 -6 -5 -5 -4 -4 -4 -4 -4 -3 -3 ------------- Run | Scr Mat Min Exi Min Mat Fac Low Low Dat Pro Fac Low Zio Pro Fac Fac Ext Cet Arc Hub Res Arm Turns Passed 12668 | 145 1686 361 1295 121 924 313 326 257 1336 554 779 229 669 348 290 134 985 231 99 1056 423 107 Spaces Moved 10623 | 68 836 180 700 68 461 741 620 371 198 413 545 306 1126 486 410 162 659 207 44 1307 547 168 Core 602 | 5 . . . . . . . . . . . . . . . . 300 13 7 52 65 160 Treads 2384 | 63 836 180 700 68 461 3 . . . . . 73 . . . . . . . . . . Legs 1182 | . . . . . . . . 90 198 413 481 . . . . . . . . . . . Wheels . | . . . . . . . . . . . . . . . . . . . . . . . Hover . | . . . . . . . . . . . . . . . . . . . . . . . Flight 6455 | . . . . . . 738 620 281 . . 64 233 1126 486 410 162 359 194 37 1255 482 8 Fastest Speed 28 | 50 160 180 180 180 152 31 31 34 120 120 31 31 31 31 28 28 28 28 28 28 28 50 Average Speed 80 | 154 175 180 180 180 152 32 44 55 120 120 116 67 31 33 32 28 99 41 55 37 38 50 Slowest Speed 800 | 160 180 180 180 180 160 152 114 150 120 150 150 160 31 114 277 28 800 800 200 800 120 60 Overloaded Moves . | . . . . . . . . . . . . . . . . . . . . . . . Propulsion Burnouts . | . . . . . . . . . . . . . . . . . . . . . . . Robots Hopped 38 | . . . . . . 2 . 2 . . . . . . . 1 1 . . 20 12 . Cave-ins Triggered . | . . . . . . . . . . . . . . . . . . . . . . . Exploration Rate (%) 48 | 6 97 37 89 23 34 18 88 58 75 52 19 35 83 48 10 7 82 69 64 94 22 14 Regions Visited 22 Branch Regions 15 Pre-discovered Areas 16 | . 2 . 1 . . . . . 1 1 1 . 2 . . . . . . 8 . . Known Exits Taken 16 | . . . . . . 1 1 1 1 1 1 1 1 1 1 1 1 1 1 1 1 . Unknown Exits Taken 6 | 1 1 1 1 1 1 . . . . . . . . . . . . . . . . . Scrap Searched 12 | . . . . . . . 3 3 . 1 . 3 2 . . . . . . . . . Spaces Dug 103 | . . . . . 15 8 1 . . 17 16 12 . . . 6 3 4 1 6 14 . Terrain Destroyed 604 | . . . . . 44 8 1 48 . 55 70 37 . 29 . 6 22 4 1 241 38 . Melee 43 | . . . . . . 8 1 . . . 6 . . . . 6 3 4 1 6 8 . Projectile . | . . . . . . . . . . . . . . . . . . . . . . . AOE 561 | . . . . . 44 . . 48 . 55 64 37 . 29 . . 19 . . 235 30 . Terrain Rammed . | . . . . . . . . . . . . . . . . . . . . . . . Walls Destroyed . | . . . . . . . . . . . . . . . . . . . . . . . Machines Disabled . | . . . . . . . . . . . . . . . . . . . . . . . Actions | -11 -10 -10 -10 -9 -8 -7 -7 -7 -7 -6 -6 -6 -6 -5 -5 -4 -4 -4 -4 -4 -3 -3 --------- Run | Scr Mat Min Exi Min Mat Fac Low Low Dat Pro Fac Low Zio Pro Fac Fac Ext Cet Arc Hub Res Arm Total 14347 | 91 975 207 731 67 601 804 665 418 1297 455 652 321 1448 670 566 240 969 341 116 1830 695 188 Wait 2994 | 2 48 14 . . 55 11 23 29 1098 11 36 5 306 174 118 62 184 129 72 501 102 14 Move 10538 | 67 835 179 699 67 460 736 619 366 197 412 544 305 1125 485 409 159 656 206 43 1274 527 168 Hop 25 | . . . . . . 2 . 2 . . . . . . . 1 1 . . 12 7 . Pick Up 81 | 8 17 3 3 . 5 8 3 3 . 3 3 . 5 1 6 3 1 . . 2 5 2 Fast Attach 85 | 7 3 . . . 7 3 4 3 . 3 13 2 4 2 11 3 2 . . 7 7 4 Attach 57 | . 1 1 1 . 3 8 6 4 1 4 2 1 . 3 3 2 2 . . 3 12 . Detach 41 | . . . . . 1 8 4 3 1 2 6 1 . 1 5 1 2 . . 3 3 . Swap 66 | . 8 1 1 . 9 5 . 1 . 7 8 3 . . 5 1 4 . . 10 3 . Drop 99 | . 14 3 3 . 13 13 3 3 . 2 13 . 8 2 9 2 2 . . 6 3 . Fire 129 | 7 38 6 . . 43 . 2 4 . 9 5 4 . 2 . . 2 . . 4 3 . Melee 92 | . . . 5 . . 10 1 . . 2 22 . . . . 6 8 6 1 8 23 . Ram . | . . . . . . . . . . . . . . . . . . . . . . . Kick . | . . . . . . . . . . . . . . . . . . . . . . . Crush 16 | . 11 . . . 5 . . . . . . . . . . . . . . . . . Escape Stasis 54 | . . . . . . . . . . . . . . . . . 54 . . . . . Rewire 70 | . . . 19 . . . . . . . . . . . . . 51 . . . . . Trap . | . . . . . . . . . . . . . . . . . . . . . . . Miscellaneous . | . . . . . . . . . . . . . . . . . . . . . . . Route ------- -11/Scrapyard -10/Materials (discovered 5 exits: *Mat x3 / [*Min x2]) -10/Mines (discovered 2 exits: *Mat / *Exi) -10/Exiles -9/Mines -8/Materials -7/Factory (discovered 4 exits: Sto x2 / *Low x2) -7/Lower Caves -7/Lower Caves -7/Data Miner -6/Proximity Caves -6/Factory (discovered 2 exits: *Low x2) -6/Lower Caves -6/Zion -5/Proximity Caves -5/Factory (discovered 3 exits: *Fac x3) -4/Factory -4/Extension (discovered 2 exits: *Res / *Cet) -4/Cetus (discovered 2 exits: *Res / *Arc) -4/Archives -4/Hub_04(d) (discovered 4 exits: *Res x4) -3/Research (discovered 3 exits: *Arm / Qua x2) -3/Armory History --------- Turn | Location | Event 34 | -11/Scrapyard | Discovered new exit (range 15) 146 | -11/Scrapyard | Entered Materials 252 | -10/Materials | Discovered new exit (range 11) 252 | -10/Materials | Discovered new exit (range 23) 316 | -10/Materials | Build established: Mutant 882 | -10/Materials | Repaired Lgt. Treads 901 | -10/Materials | Discovered new exit (range 15) 984 | -10/Materials | Discovered new exit (range 16) 997 | -10/Materials | Identified exit to Materials 1832 | -10/Materials | Entered Mines 1928 | -10/Mines | Joined a pair of Derelicts in attacking an 0b10 outpost 2092 | -10/Mines | Discovered exit to Materials (range 7) 2146 | -10/Mines | Found a damaged Exp. Sensor Array with a note attached 2151 | -10/Mines | Found Prototype Device 2179 | -10/Mines | Deemed a non-threat by the Exiles lab entrance 2179 | -10/Mines | Discovered new exit (range 5) 2193 | -10/Mines | Entered Exiles 2193 | -10/Exiles | Found Exiles lab destroyed 2364 | -10/Exiles | Build established: Scavenger-Mutant 2424 | -10/Exiles | Learned location of Zion (-6) 2768 | -10/Exiles | Opened EX-Vault 2936 | -10/Exiles | Discovered new exit (range 10) 3107 | -10/Exiles | Found Field Lobotomy Kit 3488 | -10/Exiles | Entered Mines 3488 | -9/Mines | Accompanied by 3 allies 3598 | -9/Mines | Discovered new exit (range 7) 3609 | -9/Mines | Entered Materials 3609 | -8/Materials | Accompanied by 3 allies 3609 | -8/Materials | Evolved 4 slots: Propulsion x2, Utility x2 3611 | -8/Materials | Identified Exp. Sensor Array 3849 | -8/Materials | Discovered new exit (range 10) 3986 | -8/Materials | Build established: Mutant 4533 | -8/Materials | Entered Factory 4533 | -7/Factory | Evolved 2 slots: Power x1, Utility x1 4717 | -7/Factory | Fabricated Imp. Thermal Shield? 4768 | -7/Factory | Identified exit to Storage 4768 | -7/Factory | Identified exit to Lower Caves 4846 | -7/Factory | Entered Lower Caves 4847 | -7/Lower Caves | Encountered a Warlord checkpoint 4856 | -7/Lower Caves | Build established: Scout 4912 | -7/Lower Caves | Found Alien Artifact 4912 | -7/Lower Caves | Identified Core Expander 4912 | -7/Lower Caves | Installed Core Expander, added new Utility slot 4938 | -7/Lower Caves | Learned 4 Factory zone layouts 4979 | -7/Lower Caves | Learned Factory emergency access door positions 4992 | -7/Lower Caves | Attracted the attention of an 0b10 checkpoint 4996 | -7/Lower Caves | Assimilated Y-54 Guardian with FLK Orb 5013 | -7/Lower Caves | Assimilated P-60 Hacker with FLK Orb 5146 | -7/Lower Caves | Discovered new exit (range 8) 5167 | -7/Lower Caves | Identified exit to Lower Caves 5172 | -7/Lower Caves | Entered another Lower Caves area 5172 | -7/Lower Caves | Accompanied by 1 ally 5423 | -7/Lower Caves | Discovered new exit (range 3) 5426 | -7/Lower Caves | Identified exit to Data Miner 5429 | -7/Lower Caves | Entered Data Miner 5429 | -7/Data Miner | Accompanied by 1 ally 5429 | -7/Data Miner | Discovered new exit (range 6) 5452 | -7/Data Miner | Met Data Miner 5475 | -7/Data Miner | Learned location of Section 7 (-2) 5475 | -7/Data Miner | Acquired the access code to Warlord's prototype stash 5582 | -7/Data Miner | Received God Mode back door access code from Data Miner 5595 | -7/Data Miner | Build established: Scavenger-Mutant 6764 | -7/Data Miner | Identified exit to Proximity Caves 6765 | -7/Data Miner | Entered Proximity Caves 6765 | -6/Proximity Caves | Accompanied by 1 ally 6819 | -6/Proximity Caves | Escorted by Enhanced Grunt 6819 | -6/Proximity Caves | Attracted the attention of an 0b10 checkpoint 6867 | -6/Proximity Caves | Lost 4 parts (1p2n1u) 7073 | -6/Proximity Caves | Discovered new exit (range 15) 7105 | -6/Proximity Caves | Identified exit to Factory 7319 | -6/Proximity Caves | Entered Factory 7319 | -6/Factory | Evolved 2 slots: Utility x2 7320 | -6/Factory | Identified exit to Lower Caves 7979 | -6/Factory | Assimilated Y-54 Guardian with FLK Orb 8098 | -6/Factory | Entered Lower Caves 8099 | -6/Lower Caves | Encountered a Warlord checkpoint 8123 | -6/Lower Caves | Learned Factory emergency access door positions 8324 | -6/Lower Caves | A Derelict revealed a hidden shortcut to a safe place 8326 | -6/Lower Caves | Identified exit to Zion 8327 | -6/Lower Caves | Entered Zion 8352 | -6/Zion | Learned Factory trap positions 8374 | -6/Zion | System corruption cleaned by Quarantine Array 8380 | -6/Zion | Discovered new exit (range 16) 8383 | -6/Zion | Given the Hacking Drone Bay 8383 | -6/Zion | Found Prototype Device 8383 | -6/Zion | Identified Hacking Drone Bay 8426 | -6/Zion | Learned Factory garrison access intel 8432 | -6/Zion | Found CR-A16's Pointy Stick 8439 | -6/Zion | Found Prototype Device 8439 | -6/Zion | Identified Bomb Factory No. 2 8499 | -6/Zion | Learned location of 2 exits from Factory 8610 | -6/Zion | Build established: Scavenger-Sprinter 8722 | -6/Zion | Imprinted 8724 | -6/Zion | Declared Zion's savior 8834 | -6/Zion | Identified exit to Proximity Caves 8996 | -6/Zion | Entered Proximity Caves 8996 | -5/Proximity Caves | Accompanied by 4 allies 9312 | -5/Proximity Caves | Lost 3 parts (1p1n1w) 9323 | -5/Proximity Caves | Learned Factory interactive machine intel 9329 | -5/Proximity Caves | Discovered new exit (range 6) 9331 | -5/Proximity Caves | Identified exit to Factory 9344 | -5/Proximity Caves | Entered Factory 9344 | -5/Factory | Evolved 2 slots: Propulsion x1, Utility x1 9345 | -5/Factory | Identified exit to Factory 9346 | -5/Factory | Loaded intel: 103 trap records 9348 | -5/Factory | Loaded intel: 44 interactive machine locations 9349 | -5/Factory | Loaded intel: 3 garrison access locations 9427 | -5/Factory | Zion Explosive Resupply teleported in 9432 | -5/Factory | Found Prototype Launcher 9432 | -5/Factory | Identified Mni. Smartbomb Launcher 9542 | -5/Factory | Fabricated Exp. Terrain Scanner? 9596 | -5/Factory | Discovered exit to Factory (range 25) 9610 | -5/Factory | Retrieved Zion intel report: Component Schematics 9611 | -5/Factory | Zion Fire squad teleported in 9634 | -5/Factory | Entered another Factory area 9634 | -4/Factory | Accompanied by 3 allies 9634 | -4/Factory | Evolved 2 slots: Utility x2 9709 | -4/Factory | Repaired VTOL Module 9732 | -4/Factory | Discovered new exit (range 17) 9739 | -4/Factory | Zion Heavy squad teleported in 9740 | -4/Factory | Identified exit to Extension 9768 | -4/Factory | Entered Extension 9768 | -4/Extension | Accompanied by 5 allies 9913 | -4/Extension | Rescued a captive Derelict 9915 | -4/Extension | Rescued a captive Derelict 9922 | -4/Extension | Retrieved Zion intel report: Prototype Schematics 9922 | -4/Extension | Rescued a captive Derelict 9923 | -4/Extension | Zion Heavy squad teleported in 9983 | -4/Extension | Zion Fire squad teleported in 9983 | -4/Extension | Rescued A7 9988 | -4/Extension | Zion Demo squad teleported in 9991 | -4/Extension | Zion Recon squad teleported in 9991 | -4/Extension | Rescued a captive Derelict 9992 | -4/Extension | Rescued a captive Derelict 10001 | -4/Extension | Repaired VTOL Module? 10015 | -4/Extension | Assimilated O-16 Technician with FLK Orb 10225 | -4/Extension | Spotted B-86 Titan 10231 | -4/Extension | Allies destroyed B-86 Titan 10238 | -4/Extension | Spotted B-86 Titan 10238 | -4/Extension | Allies destroyed B-86 Titan 10280 | -4/Extension | Zion Fire squad teleported in 10410 | -4/Extension | Rescued a captive Derelict 10411 | -4/Extension | Rescued a captive Derelict 10541 | -4/Extension | Rescued a captive Derelict 10542 | -4/Extension | Rescued a captive Derelict 10633 | -4/Extension | Rescued a captive Derelict 10634 | -4/Extension | Rescued a captive Derelict 10696 | -4/Extension | Discovered new exit (range 10) 10698 | -4/Extension | Discovered new exit (range 6) 10708 | -4/Extension | Identified exit to Cetus 10753 | -4/Extension | Entered Cetus 10753 | -4/Cetus | Accompanied by 18 allies (A7) 10758 | -4/Cetus | Acquired a Cetus Manufacturing Module code from A7 10778 | -4/Cetus | Spotted Cetus Guard 10778 | -4/Cetus | Spotted Cetus Guard 10780 | -4/Cetus | Spotted Cetus Guard 10789 | -4/Cetus | Allies destroyed Cetus Guard 10792 | -4/Cetus | Allies destroyed Cetus Guard 10792 | -4/Cetus | Allies destroyed Cetus Guard 10808 | -4/Cetus | Started Cetus Manufacturing Module 10810 | -4/Cetus | Zion Heavy squad teleported in 10816 | -4/Cetus | Zion Fire squad teleported in 10825 | -4/Cetus | Discovered new exit (range 15) 10833 | -4/Cetus | Manufactured an Enhanced Grunt 10858 | -4/Cetus | Manufactured an Enhanced Grunt 10874 | -4/Cetus | Spotted Cetus Guard 10874 | -4/Cetus | Spotted Cetus Guard 10874 | -4/Cetus | Spotted Cetus Guard 10874 | -4/Cetus | Spotted Cetus Guard 10883 | -4/Cetus | Manufactured an Enhanced Grunt 10884 | -4/Cetus | Allies destroyed Cetus Guard 10884 | -4/Cetus | Allies destroyed Cetus Guard 10885 | -4/Cetus | Allies destroyed Cetus Guard 10885 | -4/Cetus | Allies destroyed Cetus Guard 10893 | -4/Cetus | Discovered new exit (range 15) 10895 | -4/Cetus | Scared off Revision 17 10908 | -4/Cetus | Manufactured an Enhanced Grunt 10910 | -4/Cetus | Destroyed A7 10913 | -4/Cetus | Extracted ID and sensor layout for unrecognized location from A7's data core 10921 | -4/Cetus | Identified exit to Archives 10933 | -4/Cetus | Manufactured an Enhanced Grunt 10984 | -4/Cetus | Entered Archives 10984 | -4/Archives | Accompanied by 20 allies 11039 | -4/Archives | Discovered new exit (range 14) 11043 | -4/Archives | Identified exit to Hub_04(d) 11083 | -4/Archives | Entered Hub_04(d) 11083 | -4/Hub_04(d) | Accompanied by 17 allies 11090 | -4/Hub_04(d) | Zion Hacking Resupply teleported in 11368 | -4/Hub_04(d) | Zion Heavy squad teleported in 11379 | -4/Hub_04(d) | Found Prototype Protection 11379 | -4/Hub_04(d) | Identified Zio. Weapon Casing 11445 | -4/Hub_04(d) | Spotted B-86 Titan 11460 | -4/Hub_04(d) | Allies destroyed B-86 Titan 11500 | -4/Hub_04(d) | Zion Demo squad teleported in 11527 | -4/Hub_04(d) | Discovered new exit (range 7) 11532 | -4/Hub_04(d) | Identified exit to Research 11533 | -4/Hub_04(d) | Retrieved Zion intel report: Depthwide Sectors/0 11534 | -4/Hub_04(d) | Zion Hacking Resupply teleported in 11557 | -4/Hub_04(d) | Discovered exit to Research (range 5) 11698 | -4/Hub_04(d) | Discovered exit to Research (range 10) 11765 | -4/Hub_04(d) | Build established: Hacker-Sprinter 11840 | -4/Hub_04(d) | Retrieved Zion intel report: Active Garrisons 11841 | -4/Hub_04(d) | Zion Thermal Resupply teleported in 11919 | -4/Hub_04(d) | Zion Fire squad teleported in 11927 | -4/Hub_04(d) | Disrupted transfer network 11943 | -4/Hub_04(d) | Zion Demo squad teleported in 11967 | -4/Hub_04(d) | Retrieved Zion intel report: Prototype Stockpiles 11968 | -4/Hub_04(d) | Zion Hacking Resupply teleported in 11976 | -4/Hub_04(d) | Discovered exit to Research (range 11) 12111 | -4/Hub_04(d) | Network Hub disabled 12139 | -4/Hub_04(d) | Entered Research 12139 | -3/Research | Evolved 2 slots: Utility x2 12310 | -3/Research | Lost 8 parts (3p3n2u) 12364 | -3/Research | Spotted B-86 Titan 12417 | -3/Research | Spotted B-86 Titan 12426 | -3/Research | Retrieved Zion intel report: Branch Access 12426 | -3/Research | Identified exit to Armory 12426 | -3/Research | Identified exit to Quarantine 12438 | -3/Research | First assault squad dispatched 12458 | -3/Research | Zion Heavy squad teleported in 12476 | -3/Research | Zion Fire squad teleported in 12482 | -3/Research | P-80 Master assimilated allied NE-CCO(i) 12496 | -3/Research | Lost 5 parts (2p1n2u) 12531 | -3/Research | Zion Hacker squad teleported in 12547 | -3/Research | Core integrity fell below 50% 12562 | -3/Research | Entered Armory 12573 | -3/Armory | Zion Light squad teleported in 12573 | -3/Armory | Found Gamma Bomb Array 12575 | -3/Armory | Found Gamma Bomb Array 12589 | -3/Armory | Core integrity fell below 20% 12590 | -3/Armory | Lost 10 parts (5n4u1w) 12630 | -3/Armory | Incoming investigation squad redirected 12633 | -3/Armory | Retrieved Zion intel report: Active Terminals 12634 | -3/Armory | Zion Hacking Resupply teleported in 12669 | -3/Armory | Destroyed by S-43 Plague with Heavy Machine Gun Last Messages --------------- [ Establishing connection... ] [ Retrieving roster... ] [ Squads on standby: ] [ 1 : Trap Resupply ] [ 2 : Recon ] [ 3 : Q6-NX9(d)/Demo(1) ] [ 4 : Hacking Resupply ] >>\\ZION-INTEL [ Establishing connection... ] [ Retrieving vulnerable data list... ] [ 1 : Depthwide Sectors/0 ] [ 2 : Emergency Access ] [ 3 : Trap Installations ] >>\\ZION-DISPATCH-4 [ Target locked, reinforcements inbound... ] 12636_ Acquired System Shield. 12647_ Slug penetrates 5U-Q7B(z). 12663_ Acquired Prototype Device. 12663_ Identified Energy Mantle. 12666_ 5U-Q7B(z) destroyed. Map ----- +----------------------------------------------------+ | | | | | | | | | | | | | | | | | | | | | | | | | | | | | | | | | | | | | ????????????????#########################????????? | | ????????????????# # #???????? | | ????????????????# # #???????? | | ????????????????# !! !! # #???????? | | ????????????????# !! !! # === #???????? | | ????????????????# !! ! # === #???????? | | ????????????????# # === #???????? | | ????????????????# @ # #???????? | | ????????????????# # ????????? | | ????????????##############s###########+####??????? | | ??????????? s% #??????? | | ??????????? s!s #??????? | | ??????????? #??????? | | ??????????? ^ #?#""""# | | ????????????######+######/############### ### # | | ????????????????# #????# # | | ????????????????# " " #????# # | | ????????????????# " "????#????# ######## | | ????????????????# " "?????????# #??????? | | ????????????????# " "?????#####/###????? | | ????????????????# ?????# #????? | | ????????????????# ????# """" #????? | | ????????????????# ????# ""F" ##???? | | ????????????????#################???# "" "#???? | | ????????????????????????????????????# "#???? | | ????????????????????????????????????#! """ "#???? | | ????????????????????????????????????# """ T#???? | | ????????????????????????????????????# """ "#???? | | ????????????????????????????????????# "#???? | | ????????????????????????????????????# """ "#???? | | ????????????????????????????????????# """ ##???? | | ????????????????????????????????????# """ #????? | +----------------------------------------------------+ Best States ------------- Heat Dissipation 46 Coolant Potential 50 Energy Generation 34 Energy Capacity 385 Matter Stores 300 Matter Capacity 300 Sight Range 16 Robot Scan Range 30 Terrain Scan Range 30 Terrain Scan Density 460 Additional Mass Support 12 Armor Coverage 225 Utility Shielding 66 Weapon Shielding 100 Evasion (%) 64 Targeting Accuracy 8 Melee Accuracy 8 Recoil Reduction 4 Offensive Hacking 26 Defensive Hacking 20 Item Schematics ----------------- Signal Interpreter | -8/Materials | Hacked Combat Drone Bay | -7/Data Miner | Free Lgt. Regenerative Plating | -7/Data Miner | Free Exp. Flexi-carbon Leg | -7/Data Miner | Free Exp. Cesium-ion Thruster | -7/Data Miner | Free Exp. Sensor Array | -7/Data Miner | Free Exp. Terrain Scanner | -7/Data Miner | Free Exp. Terrain Scan Processor | -7/Data Miner | Free Exp. ECM Suite | -7/Data Miner | Free Cloaking Device | -7/Data Miner | Free Kinetic Spear | -7/Data Miner | Free Riot Gun | -6/Zion | Free Arc Thrower | -6/Zion | Free Battle Rifle | -6/Zion | Free Battle Cannon | -6/Zion | Free Enh. Flamer | -6/Zion | Free Plasma Cutter | -5/Factory | Z-intel Magnetic Acceleration Cannon | -5/Factory | Z-intel Adv. Weight Redist. System | -5/Factory | Z-intel Imp. Shield Generator | -5/Factory | Z-intel Imp. Medium Treads | -5/Factory | Z-intel Neutron Cannon | -5/Factory | Z-intel Recoil Stabilizer | -5/Factory | Z-intel Power Amplifier | -5/Factory | Z-intel Target Analyzer | -5/Factory | Z-intel EM Shield | -5/Factory | Z-intel Gatling Laser | -5/Factory | Z-intel Hcp. Storage Unit | -5/Factory | Z-intel Adv. Melee Analysis Suite | -5/Factory | Z-intel Imp. EM Pulse Cannon | -5/Factory | Z-intel Component Analysis Suite | -5/Factory | Z-intel Imp. Energy Well | -4/Extension | Z-intel Tri-rail Accelerator | -4/Extension | Z-intel Ionic Axe | -4/Extension | Z-intel Enh. Force Rifle | -4/Extension | Z-intel Stealth Drone Bay | -4/Extension | Z-intel Adv. Energy Well | -4/Extension | Z-intel Adv. Power Amplifier | -4/Extension | Z-intel Adv. Variable Charge Gun | -4/Extension | Z-intel Lgt. Neutrino Core | -4/Extension | Z-intel Adv. Myomer Leg | -4/Extension | Z-intel Lgt. Antimatter Cannon | -4/Extension | Z-intel Cld. Nuclear Pulse Thruster | -4/Extension | Z-intel Robot Schematics ------------------ S-27 Virus | -7/Data Miner | Free G-50 Soldier | -7/Data Miner | Free G-67 Veteran | -7/Data Miner | Free L-41 Fighter | -7/Data Miner | Free I-36 Angel | -7/Data Miner | Free Fabricated ------------ Imp. Thermal Shield | x2 | -7/Factory | Preloaded Exp. Terrain Scanner | x1 | -5/Factory Alien Tech Used ----------------- Core Expander Achievements -------------- Beloved Cya! Friend Of Zion Challenges ------------ None Game ------ Seed DirtyWaveBay Manual? 0 Play Time 04:03:06 Cumulative 107.9 hours Start 2021.10.06 @ 09:11:55 End 2021.10.10 @ 04:48:21 Sessions 27 Manual Loads 0 Difficulty Rogue Special Mode None Game No. 70 Rogue 70 Adventurer 0 Explorer 0 Win Type - Total 1 Types 0/0/0/1/0/0/0/0/0 Lore% 64 Gallery% 73 Achievement% 49 Wizard Run 0 Options --------- ASCII 0 Keyboard 1 Movement Vi Keybinds 0 Fullscreen 2 Font 18/Cog Map View 76x50 Tactical HUD 1 Map Filters NONE Filters NONE Steam 0 RUN: f252120e-d1cd-45cf-bffa-abe15bf79945